[Event "Early-Titled-Tuesday-Blitz-August-29-2023"]
[Site "Chess.com"]
[Date "2023.08.29"]
[Round "8"]
[White "Goffredo_Fofi"]
[Black "lamomiajunior"]
[Result "0-1"]
[WhiteElo "2552"]
[BlackElo "2793"]
[TimeControl "180+1"]
[EndTime "9:27:44 PDT"]
[Termination "lamomiajunior won by resignation"]

1. g3 {[%clk 0:03:00.5]} 1... d5 {[%clk 0:03:00.2]} 2. Bg2 {[%clk 0:03:01]} 2...
Nf6 {[%clk 0:03:00.5]} 3. c3 {[%clk 0:03:00.1]} 3... c5 {[%clk 0:02:59.8]} 4. d4
{[%clk 0:03:00.3]} 4... Nc6 {[%clk 0:02:59.7]} 5. Nf3 {[%clk 0:02:59.7]} 5...
cxd4 {[%clk 0:02:55.9]} 6. cxd4 {[%clk 0:02:59.5]} 6... Bf5 {[%clk 0:02:56.1]}
7. Nc3 {[%clk 0:02:55.1]} 7... e6 {[%clk 0:02:53.6]} 8. Bg5 {[%clk 0:02:54.7]}
8... Be7 {[%clk 0:02:53.6]} 9. Bxf6 {[%clk 0:02:54.1]} 9... Bxf6 {[%clk
0:02:53.9]} 10. e3 {[%clk 0:02:45.5]} 10... O-O {[%clk 0:02:54.1]} 11. O-O
{[%clk 0:02:45.4]} 11... Rc8 {[%clk 0:02:53.4]} 12. Qe2 {[%clk 0:02:36]} 12...
Na5 {[%clk 0:02:47]} 13. Rfc1 {[%clk 0:02:33.3]} 13... Be7 {[%clk 0:02:41]} 14.
Ne1 {[%clk 0:02:29.2]} 14... Qb6 {[%clk 0:02:28.9]} 15. h4 {[%clk 0:02:03.3]}
15... Nc4 {[%clk 0:02:25.6]} 16. g4 {[%clk 0:01:56.3]} 16... Bxg4 {[%clk
0:01:41]} 17. Qxg4 {[%clk 0:01:57.2]} 17... Qxb2 {[%clk 0:01:33]} 18. Nd3 {[%clk
0:01:37]} 18... Qa3 {[%clk 0:01:29.9]} 19. Nf4 {[%clk 0:01:25.5]} 19... Nxe3
{[%clk 0:01:19]} 20. fxe3 {[%clk 0:01:22.8]} 20... Rxc3 {[%clk 0:01:19.7]} 21.
Re1 {[%clk 0:00:47.6]} 21... Rxe3 {[%clk 0:01:14.1]} 22. Rxe3 {[%clk 0:00:48.5]}
22... Qxe3+ {[%clk 0:01:13.8]} 23. Kh1 {[%clk 0:00:41.2]} 23... Qxd4 {[%clk
0:01:14]} 24. Rd1 {[%clk 0:00:40.2]} 24... Qa4 {[%clk 0:01:11.7]} 25. Bf3 {[%clk
0:00:28.8]} 25... Kh8 {[%clk 0:01:01.7]} 26. h5 {[%clk 0:00:28.2]} 26... Qb4
{[%clk 0:00:55.6]} 27. Nd3 {[%clk 0:00:15.1]} 27... Qxg4 {[%clk 0:00:54.1]} 28.
Bxg4 {[%clk 0:00:16]} 28... Bd6 {[%clk 0:00:53.8]} 29. Rc1 {[%clk 0:00:15.9]}
29... g6 {[%clk 0:00:49.6]} 30. h6 {[%clk 0:00:14.4]} 30... f5 {[%clk
0:00:48.5]} 31. Bf3 {[%clk 0:00:13.7]} 31... Kg8 {[%clk 0:00:48.9]} 32. Rc2
{[%clk 0:00:13.2]} 32... Kf7 {[%clk 0:00:49.1]} 33. Re2 {[%clk 0:00:13]} 33...
Kf6 {[%clk 0:00:49.3]} 34. Rc2 {[%clk 0:00:13]} 34... Rd8 {[%clk 0:00:49.4]} 35.
Kg2 {[%clk 0:00:12.9]} 35... g5 {[%clk 0:00:49.5]} 36. Kf2 {[%clk 0:00:12.2]}
36... g4 {[%clk 0:00:49.9]} 37. Bg2 {[%clk 0:00:12.4]} 37... a6 {[%clk
0:00:49.1]} 38. Ke2 {[%clk 0:00:12.3]} 38... Bg3 {[%clk 0:00:47.9]} 39. Rb2
{[%clk 0:00:13.2]} 39... b5 {[%clk 0:00:47.7]} 40. a4 {[%clk 0:00:13.4]} 40...
Rb8 {[%clk 0:00:46.5]} 41. axb5 {[%clk 0:00:12.8]} 41... axb5 {[%clk 0:00:47.4]}
42. Nc5 {[%clk 0:00:12.6]} 42... Ke7 {[%clk 0:00:43.5]} 43. Ra2 {[%clk
0:00:12.2]} 43... Kd6 {[%clk 0:00:39.3]} 44. Nb3 {[%clk 0:00:12]} 44... Ke5
{[%clk 0:00:30.3]} 45. Ra6 {[%clk 0:00:12.3]} 45... Rc8 {[%clk 0:00:28.1]} 46.
Kd3 {[%clk 0:00:11.9]} 46... Be1 {[%clk 0:00:23.6]} 47. Nd4 {[%clk 0:00:11.9]}
47... Rc3+ {[%clk 0:00:24]} 48. Ke2 {[%clk 0:00:12.1]} 48... Kxd4 {[%clk
0:00:24.6]} 49. Kxe1 {[%clk 0:00:12.5]} 49... Re3+ {[%clk 0:00:24.3]} 50. Kf1
{[%clk 0:00:12.6]} 50... f4 {[%clk 0:00:24.5]} 51. Ra7 {[%clk 0:00:10.1]} 51...
f3 {[%clk 0:00:24]} 52. Rxh7 {[%clk 0:00:10.6]} 52... fxg2+ {[%clk 0:00:23.8]}
53. Kxg2 {[%clk 0:00:11.5]} 53... Rh3 {[%clk 0:00:24.2]} 54. Rh8 {[%clk
0:00:11.2]} 54... Ke5 {[%clk 0:00:24.6]} 55. h7 {[%clk 0:00:11.6]} 55... b4
{[%clk 0:00:25.3]} 56. Kf2 {[%clk 0:00:10.6]} 56... b3 {[%clk 0:00:25.6]} 57.
Kg2 {[%clk 0:00:10.8]} 57... b2 {[%clk 0:00:26.1]} 58. Rb8 {[%clk 0:00:10.6]}
58... Rxh7 {[%clk 0:00:26.3]} 59. Rxb2 {[%clk 0:00:11.5]} 59... Rh3 {[%clk
0:00:26.5]} 60. Rd2 {[%clk 0:00:10]} 60... d4 {[%clk 0:00:25.6]} 61. Rb2 {[%clk
0:00:09.9]} 61... Ke4 {[%clk 0:00:25.4]} 62. Re2+ {[%clk 0:00:09.6]} 62... Re3
{[%clk 0:00:26]} 63. Rb2 {[%clk 0:00:09.4]} 63... e5 {[%clk 0:00:26.6]} 64. Rf2
{[%clk 0:00:08.9]} 64... d3 {[%clk 0:00:26.4]} 0-1

[Event "Early-Titled-Tuesday-Blitz-August-29-2023"]
[Site "Chess.com"]
[Date "2023.08.29"]
[Round "8"]
[White "amintabatabaei"]
[Black "Elsa167"]
[Result "1-0"]
[WhiteElo "2961"]
[BlackElo "2874"]
[TimeControl "180+1"]
[EndTime "9:27:45 PDT"]
[Termination "amintabatabaei won on time"]

1. c4 {[%clk 0:03:00.9]} 1... e6 {[%clk 0:02:59.6]} 2. g3 {[%clk 0:03:00.4]}
2... Nf6 {[%clk 0:02:59]} 3. Bg2 {[%clk 0:03:00.8]} 3... d5 {[%clk 0:02:59.7]}
4. Nf3 {[%clk 0:03:01.4]} 4... Be7 {[%clk 0:03:00.5]} 5. O-O {[%clk 0:03:01.3]}
5... O-O {[%clk 0:03:01.2]} 6. d4 {[%clk 0:03:01.9]} 6... c6 {[%clk 0:02:59.5]}
7. Nc3 {[%clk 0:03:00.5]} 7... a5 {[%clk 0:02:59.7]} 8. b3 {[%clk 0:02:56.7]}
8... b6 {[%clk 0:02:59.4]} 9. Bb2 {[%clk 0:02:52.6]} 9... Ba6 {[%clk 0:02:59.3]}
10. Nd2 {[%clk 0:02:44.3]} 10... b5 {[%clk 0:02:52.1]} 11. c5 {[%clk 0:02:44]}
11... b4 {[%clk 0:02:52.7]} 12. Na4 {[%clk 0:02:44.3]} 12... Nbd7 {[%clk
0:02:53.1]} 13. Re1 {[%clk 0:02:35.2]} 13... Bb5 {[%clk 0:02:50.4]} 14. a3
{[%clk 0:02:35.3]} 14... Re8 {[%clk 0:02:37.1]} 15. Qc2 {[%clk 0:02:30.2]} 15...
Bf8 {[%clk 0:02:36.6]} 16. e4 {[%clk 0:02:22.1]} 16... dxe4 {[%clk 0:02:35.9]}
17. Nxe4 {[%clk 0:02:22.2]} 17... Nxe4 {[%clk 0:02:34.9]} 18. Bxe4 {[%clk
0:02:07.8]} 18... g6 {[%clk 0:02:27.4]} 19. Bf3 {[%clk 0:02:01.5]} 19... Bg7
{[%clk 0:02:22.7]} 20. h4 {[%clk 0:02:00.6]} 20... Rb8 {[%clk 0:02:16.6]} 21.
axb4 {[%clk 0:02:00.3]} 21... axb4 {[%clk 0:02:16.8]} 22. Kg2 {[%clk 0:01:56.4]}
22... Qc7 {[%clk 0:02:11.9]} 23. h5 {[%clk 0:01:53.6]} 23... Rbd8 {[%clk
0:02:11.1]} 24. Rad1 {[%clk 0:01:44.2]} 24... Nf6 {[%clk 0:02:10.3]} 25. hxg6
{[%clk 0:01:40.8]} 25... hxg6 {[%clk 0:02:11.2]} 26. Nb6 {[%clk 0:01:41]} 26...
Nd5 {[%clk 0:02:04]} 27. Nc4 {[%clk 0:01:39.3]} 27... Bxc4 {[%clk 0:01:28.1]}
28. bxc4 {[%clk 0:01:39]} 28... Ne7 {[%clk 0:01:28.5]} 29. d5 {[%clk 0:01:11.6]}
29... cxd5 {[%clk 0:01:13.6]} 30. Bxg7 {[%clk 0:01:11.3]} 30... Kxg7 {[%clk
0:01:14.5]} 31. Qb2+ {[%clk 0:01:11.8]} 31... d4 {[%clk 0:00:46.6]} 32. Rxd4
{[%clk 0:01:11.3]} 32... Rxd4 {[%clk 0:00:36.2]} 33. Qxd4+ {[%clk 0:01:12.2]}
33... Kf8 {[%clk 0:00:25.4]} 34. c6 {[%clk 0:01:01.1]} 34... b3 {[%clk
0:00:18.3]} 35. Rb1 {[%clk 0:00:38.8]} 35... Rb8 {[%clk 0:00:18.6]} 36. c5
{[%clk 0:00:39.5]} 36... Nxc6 {[%clk 0:00:13.8]} 37. Qh8+ {[%clk 0:00:16.6]}
37... Ke7 {[%clk 0:00:14.4]} 38. Qh4+ {[%clk 0:00:17.4]} 38... Kf8 {[%clk
0:00:11.6]} 39. Be4 {[%clk 0:00:18.1]} 39... Ne7 {[%clk 0:00:05.3]} 40. Qh8+
{[%clk 0:00:14.5]} 40... Ng8 {[%clk 0:00:05.2]} 41. c6 {[%clk 0:00:15.1]} 41...
Rb5 {[%clk 0:00:03]} 42. Qc3 {[%clk 0:00:13.6]} 42... Qe5 {[%clk 0:00:02.8]} 43.
Qd3 {[%clk 0:00:03.1]} 43... Rc5 {[%clk 0:00:02.1]} 44. Rxb3 {[%clk 0:00:02.4]}
44... Ne7 {[%clk 0:00:02.8]} 45. Rb6 {[%clk 0:00:02]} 45... Kg7 {[%clk
0:00:02.5]} 46. Bf3 {[%clk 0:00:02.5]} 46... Nf5 {[%clk 0:00:01.4]} 47. Rb7
{[%clk 0:00:02]} 47... Qd4 {[%clk 0:00:01.7]} 48. Qxd4+ {[%clk 0:00:01.6]} 48...
Nxd4 {[%clk 0:00:02.6]} 49. c7 {[%clk 0:00:01.9]} 49... e5 {[%clk 0:00:02.5]}
50. Bg4 {[%clk 0:00:01.9]} 50... f5 {[%clk 0:00:02.4]} 51. c8=Q+ {[%clk
0:00:01.9]} 1-0

[Event "Early-Titled-Tuesday-Blitz-August-29-2023"]
[Site "Chess.com"]
[Date "2023.08.29"]
[Round "8"]
[White "druskacik"]
[Black "angryspacevoid"]
[Result "0-1"]
[WhiteElo "2640"]
[BlackElo "2542"]
[TimeControl "180+1"]
[EndTime "9:27:48 PDT"]
[Termination "angryspacevoid won by resignation"]

1. g3 {[%clk 0:02:55.3]} 1... e5 {[%clk 0:02:56.2]} 2. Bg2 {[%clk 0:02:56.2]}
2... h5 {[%clk 0:02:56.2]} 3. h3 {[%clk 0:02:52.4]} 3... d5 {[%clk 0:02:51.6]}
4. c4 {[%clk 0:02:51.3]} 4... c6 {[%clk 0:02:38.5]} 5. Nf3 {[%clk 0:02:48.2]}
5... e4 {[%clk 0:02:26.7]} 6. Nd4 {[%clk 0:02:47.9]} 6... Nf6 {[%clk 0:02:24]}
7. d3 {[%clk 0:02:44.9]} 7... dxc4 {[%clk 0:02:11.9]} 8. dxe4 {[%clk 0:02:37.5]}
8... Bc5 {[%clk 0:02:08]} 9. Be3 {[%clk 0:02:34.6]} 9... Qe7 {[%clk 0:02:02.9]}
10. Qc2 {[%clk 0:02:24]} 10... b5 {[%clk 0:01:55.8]} 11. a4 {[%clk 0:02:18.3]}
11... Bb7 {[%clk 0:01:46.4]} 12. axb5 {[%clk 0:02:00.9]} 12... Bxd4 {[%clk
0:01:41.5]} 13. Bxd4 {[%clk 0:02:00.4]} 13... cxb5 {[%clk 0:01:41.9]} 14. Nc3
{[%clk 0:01:57.4]} 14... Nc6 {[%clk 0:01:25.3]} 15. Bxf6 {[%clk 0:01:51.2]}
15... gxf6 {[%clk 0:01:16.7]} 16. Nd5 {[%clk 0:01:51.2]} 16... Qd6 {[%clk
0:01:13.3]} 17. Qc3 {[%clk 0:01:42.3]} 17... Rh6 {[%clk 0:01:08.1]} 18. O-O
{[%clk 0:01:40.2]} 18... h4 {[%clk 0:01:02.8]} 19. f4 {[%clk 0:01:11.6]} 19...
hxg3 {[%clk 0:00:51.6]} 20. Rfd1 {[%clk 0:00:58.3]} 20... Qc5+ {[%clk
0:00:38.7]} 21. e3 {[%clk 0:00:55.3]} 21... O-O-O {[%clk 0:00:39.1]} 22. b4
{[%clk 0:00:54.3]} 22... Qf8 {[%clk 0:00:36.3]} 23. Nxf6 {[%clk 0:00:46.3]}
23... Rxd1+ {[%clk 0:00:30.5]} 24. Rxd1 {[%clk 0:00:47.2]} 24... Qxb4 {[%clk
0:00:26.9]} 25. Qa1 {[%clk 0:00:39.7]} 25... Qb3 {[%clk 0:00:23.8]} 26. Ng4
{[%clk 0:00:30.4]} 26... Re6 {[%clk 0:00:22.4]} 27. Rb1 {[%clk 0:00:21.5]} 27...
Qa4 {[%clk 0:00:18]} 28. Qh8+ {[%clk 0:00:20.7]} 28... Kc7 {[%clk 0:00:17.8]}
29. Qf8 {[%clk 0:00:19.5]} 29... Nd8 {[%clk 0:00:17.1]} 30. Qc5+ {[%clk
0:00:18.4]} 30... Bc6 {[%clk 0:00:17.2]} 31. e5 {[%clk 0:00:18.4]} 31... Nb7
{[%clk 0:00:16.9]} 32. Qf8 {[%clk 0:00:14.6]} 32... Nd8 {[%clk 0:00:11.4]} 33.
Bxc6 {[%clk 0:00:12.8]} 33... Rxc6 {[%clk 0:00:10.3]} 34. e6 {[%clk 0:00:09.2]}
34... fxe6 {[%clk 0:00:09.2]} 35. Qe7+ {[%clk 0:00:08.4]} 35... Kc8 {[%clk
0:00:08.9]} 36. Ne5 {[%clk 0:00:07.4]} 36... Rc7 {[%clk 0:00:09.2]} 37. Qg5
{[%clk 0:00:04.8]} 37... c3 {[%clk 0:00:09.3]} 38. Qxg3 {[%clk 0:00:05]} 38...
c2 {[%clk 0:00:09.6]} 39. Rc1 {[%clk 0:00:05.7]} 39... Qa3 {[%clk 0:00:10.1]}
40. Qe1 {[%clk 0:00:06.6]} 40... b4 {[%clk 0:00:09.5]} 41. Qd2 {[%clk
0:00:05.2]} 41... b3 {[%clk 0:00:09.8]} 42. Qd3 {[%clk 0:00:05.1]} 42... Qxc1+
{[%clk 0:00:09.5]} 43. Kf2 {[%clk 0:00:05.8]} 43... Qd1 {[%clk 0:00:10]} 44.
Qa6+ {[%clk 0:00:05.4]} 44... Nb7 {[%clk 0:00:09.4]} 45. Qxa7 {[%clk 0:00:05.2]}
45... Kd8 {[%clk 0:00:06.7]} 46. Qb8+ {[%clk 0:00:03.6]} 46... Rc8 {[%clk
0:00:06.1]} 47. Qxb7 {[%clk 0:00:03.9]} 47... c1=Q {[%clk 0:00:05.3]} 48. Qb6+
{[%clk 0:00:02.9]} 48... Ke7 {[%clk 0:00:04.5]} 49. Qb7+ {[%clk 0:00:02.7]}
49... Qc7 {[%clk 0:00:04.4]} 50. Qb4+ {[%clk 0:00:03.3]} 50... Qc5 {[%clk
0:00:04.5]} 51. Qb7+ {[%clk 0:00:03]} 51... Rc7 {[%clk 0:00:04.6]} 52. Qe4
{[%clk 0:00:03.8]} 52... Qcc2+ {[%clk 0:00:04.3]} 53. Kg3 {[%clk 0:00:02.8]}
53... Qxe4 {[%clk 0:00:04.3]} 54. h4 {[%clk 0:00:03.2]} 54... b2 {[%clk
0:00:03.8]} 0-1

[Event "Early-Titled-Tuesday-Blitz-August-29-2023"]
[Site "Chess.com"]
[Date "2023.08.29"]
[Round "8"]
[White "Firouzja2003"]
[Black "DanielNaroditsky"]
[Result "1-0"]
[WhiteElo "3098"]
[BlackElo "3144"]
[TimeControl "180+1"]
[EndTime "9:27:49 PDT"]
[Termination "Firouzja2003 won by resignation"]

1. e4 {[%clk 0:02:56.9]} 1... Nf6 {[%clk 0:03:00.6]} 2. e5 {[%clk 0:02:56.6]}
2... Nd5 {[%clk 0:03:00.5]} 3. d4 {[%clk 0:02:57.3]} 3... d6 {[%clk 0:03:00.7]}
4. c4 {[%clk 0:02:57]} 4... Nb6 {[%clk 0:03:00.4]} 5. exd6 {[%clk 0:02:57.5]}
5... exd6 {[%clk 0:03:01.3]} 6. h3 {[%clk 0:02:57.2]} 6... Be7 {[%clk
0:03:01.3]} 7. Nf3 {[%clk 0:02:57.3]} 7... O-O {[%clk 0:03:01.4]} 8. Bd3 {[%clk
0:02:57.1]} 8... Nc6 {[%clk 0:02:43.1]} 9. Nc3 {[%clk 0:02:57.1]} 9... Bf6
{[%clk 0:02:40.6]} 10. O-O {[%clk 0:02:54.6]} 10... Re8 {[%clk 0:02:40]} 11. b3
{[%clk 0:02:39.4]} 11... h6 {[%clk 0:02:14.3]} 12. Be3 {[%clk 0:02:35.8]} 12...
Ne7 {[%clk 0:02:05.3]} 13. Qc2 {[%clk 0:02:02.4]} 13... d5 {[%clk 0:02:05]} 14.
a4 {[%clk 0:01:50]} 14... a5 {[%clk 0:01:59.1]} 15. Rfe1 {[%clk 0:01:40.5]}
15... c6 {[%clk 0:01:59]} 16. c5 {[%clk 0:01:26.7]} 16... Nd7 {[%clk 0:01:59.2]}
17. Bf4 {[%clk 0:01:27]} 17... Nf8 {[%clk 0:01:54.5]} 18. Be5 {[%clk 0:01:27.2]}
18... Bxe5 {[%clk 0:01:23.7]} 19. Nxe5 {[%clk 0:01:27.5]} 19... Be6 {[%clk
0:01:12.6]} 20. Re2 {[%clk 0:01:20.5]} 20... f6 {[%clk 0:01:08.7]} 21. Nf3
{[%clk 0:01:17.8]} 21... Bf7 {[%clk 0:01:01.9]} 22. Rae1 {[%clk 0:01:17.3]}
22... Qd7 {[%clk 0:01:00.4]} 23. Nh4 {[%clk 0:01:13.5]} 23... Ne6 {[%clk
0:00:42.2]} 24. Bh7+ {[%clk 0:01:01]} 24... Kf8 {[%clk 0:00:42.5]} 25. Nf5
{[%clk 0:00:46.5]} 25... Nxf5 {[%clk 0:00:40]} 26. Bxf5 {[%clk 0:00:44.1]} 26...
Re7 {[%clk 0:00:37.9]} 27. Qd2 {[%clk 0:00:41.6]} 27... Rae8 {[%clk 0:00:36.4]}
28. Re3 {[%clk 0:00:29.1]} 28... Qc7 {[%clk 0:00:34.7]} 29. Ne2 {[%clk 0:00:22]}
29... Nf4 {[%clk 0:00:17]} 30. Ng3 {[%clk 0:00:14.7]} 30... g6 {[%clk
0:00:15.4]} 31. Rxe7 {[%clk 0:00:07.2]} 31... Rxe7 {[%clk 0:00:16.3]} 32. Rxe7
{[%clk 0:00:07.4]} 32... Kxe7 {[%clk 0:00:17.2]} 33. Bc8 {[%clk 0:00:08.1]}
33... g5 {[%clk 0:00:11.7]} 34. Nf5+ {[%clk 0:00:06.3]} 34... Kf8 {[%clk
0:00:08.9]} 35. Nd6 {[%clk 0:00:07.2]} 35... b6 {[%clk 0:00:08.8]} 36. Bf5
{[%clk 0:00:03.7]} 36... bxc5 {[%clk 0:00:07.1]} 37. dxc5 {[%clk 0:00:04.6]}
37... Qe7 {[%clk 0:00:03.8]} 38. Qxa5 {[%clk 0:00:02.9]} 38... Ne2+ {[%clk
0:00:02.2]} 39. Kf1 {[%clk 0:00:02.9]} 39... Nd4 {[%clk 0:00:02.6]} 40. Bg4
{[%clk 0:00:03.1]} 40... h5 {[%clk 0:00:02.6]} 41. Qa8+ {[%clk 0:00:03.2]} 41...
Be8 {[%clk 0:00:02.7]} 42. Qxe8+ {[%clk 0:00:03.1]} 42... Qxe8 {[%clk
0:00:02.8]} 43. Nxe8 {[%clk 0:00:04]} 43... hxg4 {[%clk 0:00:02.4]} 44. Nxf6
{[%clk 0:00:04.2]} 44... Nxb3 {[%clk 0:00:02.6]} 45. Nxg4 {[%clk 0:00:04.1]}
45... Nxc5 {[%clk 0:00:03.3]} 46. a5 {[%clk 0:00:04.4]} 46... Ke7 {[%clk
0:00:04.1]} 47. Ne5 {[%clk 0:00:04.1]} 47... Kd6 {[%clk 0:00:03.6]} 48. Nf7+
{[%clk 0:00:04.6]} 48... Ke6 {[%clk 0:00:02.6]} 49. Nxg5+ {[%clk 0:00:04.4]}
49... Kf5 {[%clk 0:00:03.3]} 50. Nf7 {[%clk 0:00:04.1]} 50... Na6 {[%clk
0:00:02.4]} 51. Nd8 {[%clk 0:00:03.6]} 51... c5 {[%clk 0:00:02.6]} 52. Ke2
{[%clk 0:00:03.6]} 52... c4 {[%clk 0:00:02.5]} 53. Nc6 {[%clk 0:00:03.8]} 53...
Ke6 {[%clk 0:00:02.3]} 54. Nd4+ {[%clk 0:00:03.6]} 54... Ke5 {[%clk 0:00:03]}
55. Ke3 {[%clk 0:00:04.4]} 55... c3 {[%clk 0:00:03.1]} 56. f4+ {[%clk
0:00:03.7]} 56... Kd6 {[%clk 0:00:03.6]} 57. Kd3 {[%clk 0:00:04.3]} 1-0

[Event "Early-Titled-Tuesday-Blitz-August-29-2023"]
[Site "Chess.com"]
[Date "2023.08.29"]
[Round "8"]
[White "vladislavkovalev"]
[Black "GianmarcoVaR"]
[Result "1/2-1/2"]
[WhiteElo "2908"]
[BlackElo "2762"]
[TimeControl "180+1"]
[EndTime "9:27:50 PDT"]
[Termination "Game drawn by repetition"]

1. e4 {[%clk 0:02:57.1]} 1... c5 {[%clk 0:02:59.9]} 2. Nf3 {[%clk 0:02:57.6]}
2... d6 {[%clk 0:03:00.3]} 3. Bb5+ {[%clk 0:02:57.8]} 3... Nd7 {[%clk
0:03:00.2]} 4. O-O {[%clk 0:02:57.8]} 4... a6 {[%clk 0:02:58.8]} 5. Bd3 {[%clk
0:02:58.4]} 5... Ngf6 {[%clk 0:02:52.6]} 6. c3 {[%clk 0:02:58.6]} 6... c4 {[%clk
0:02:26.1]} 7. Bxc4 {[%clk 0:02:44.3]} 7... Nxe4 {[%clk 0:02:25.1]} 8. Re1
{[%clk 0:02:44.9]} 8... Nef6 {[%clk 0:02:14.2]} 9. Ng5 {[%clk 0:02:44.9]} 9...
d5 {[%clk 0:02:12.1]} 10. Bb3 {[%clk 0:02:39.5]} 10... e6 {[%clk 0:02:09.6]} 11.
d4 {[%clk 0:02:38.7]} 11... Bd6 {[%clk 0:01:56.8]} 12. Nd2 {[%clk 0:02:12.2]}
12... O-O {[%clk 0:01:52.9]} 13. Ndf3 {[%clk 0:02:06.3]} 13... Qc7 {[%clk
0:01:49.2]} 14. Qe2 {[%clk 0:01:59.3]} 14... h6 {[%clk 0:01:43.1]} 15. Nh3
{[%clk 0:01:33.2]} 15... Ne4 {[%clk 0:01:37.6]} 16. g3 {[%clk 0:01:24.5]} 16...
g5 {[%clk 0:01:07.8]} 17. Nhxg5 {[%clk 0:01:19.5]} 17... hxg5 {[%clk 0:01:03.4]}
18. Nxg5 {[%clk 0:01:20.4]} 18... Ndf6 {[%clk 0:00:48.1]} 19. Bc2 {[%clk
0:01:18.9]} 19... Kg7 {[%clk 0:00:41.9]} 20. f3 {[%clk 0:00:59.8]} 20... Nxg5
{[%clk 0:00:40.9]} 21. Bxg5 {[%clk 0:01:00.7]} 21... Rh8 {[%clk 0:00:38.4]} 22.
Kg2 {[%clk 0:00:54.2]} 22... Bd7 {[%clk 0:00:33.9]} 23. Qe3 {[%clk 0:00:46.1]}
23... Rag8 {[%clk 0:00:29.6]} 24. Rh1 {[%clk 0:00:38.2]} 24... Ne8 {[%clk
0:00:26.3]} 25. Kf2 {[%clk 0:00:13.7]} 25... f6 {[%clk 0:00:21.9]} 26. Bh4
{[%clk 0:00:14]} 26... Kf7 {[%clk 0:00:19.6]} 27. Rae1 {[%clk 0:00:13.6]} 27...
Rxh4 {[%clk 0:00:11.9]} 28. gxh4 {[%clk 0:00:13.8]} 28... Bxh2 {[%clk
0:00:12.1]} 29. Ke2 {[%clk 0:00:06.9]} 29... Rg2+ {[%clk 0:00:09.9]} 30. Kd1
{[%clk 0:00:07.4]} 30... Bf4 {[%clk 0:00:09.7]} 31. Qd3 {[%clk 0:00:07]} 31...
Rd2+ {[%clk 0:00:09.2]} 32. Qxd2 {[%clk 0:00:07.6]} 32... Bxd2 {[%clk
0:00:10.1]} 33. Kxd2 {[%clk 0:00:08.5]} 33... Qf4+ {[%clk 0:00:09.9]} 34. Re3
{[%clk 0:00:08.8]} 34... Nd6 {[%clk 0:00:09.5]} 35. b3 {[%clk 0:00:08.7]} 35...
Nf5 {[%clk 0:00:04]} 36. Bxf5 {[%clk 0:00:08.8]} 36... Qxf5 {[%clk 0:00:04.6]}
37. h5 {[%clk 0:00:08.8]} 37... Kg7 {[%clk 0:00:03.5]} 38. h6+ {[%clk
0:00:09.4]} 38... Kh7 {[%clk 0:00:03.5]} 39. Rg1 {[%clk 0:00:07.9]} 39... Be8
{[%clk 0:00:02.8]} 40. f4 {[%clk 0:00:01.5]} 40... Bg6 {[%clk 0:00:02.7]} 41.
Reg3 {[%clk 0:00:02.3]} 41... Qc2+ {[%clk 0:00:02.8]} 42. Ke1 {[%clk 0:00:03.1]}
42... Qb1+ {[%clk 0:00:02.3]} 43. Kf2 {[%clk 0:00:03.6]} 43... Qc2+ {[%clk
0:00:02.8]} 44. Ke1 {[%clk 0:00:03.9]} 44... Kxh6 {[%clk 0:00:02.5]} 45. Rxg6+
{[%clk 0:00:02.8]} 45... Qxg6 {[%clk 0:00:02.8]} 46. Rxg6+ {[%clk 0:00:03.7]}
46... Kxg6 {[%clk 0:00:03.7]} 47. Kf2 {[%clk 0:00:04.5]} 47... Kf5 {[%clk
0:00:03.3]} 48. Kf3 {[%clk 0:00:05.2]} 48... b5 {[%clk 0:00:03.2]} 49. b4 {[%clk
0:00:04.8]} 49... e5 {[%clk 0:00:01.5]} 50. fxe5 {[%clk 0:00:05.7]} 50... fxe5
{[%clk 0:00:02.1]} 51. dxe5 {[%clk 0:00:06.6]} 51... Kxe5 {[%clk 0:00:02.2]} 52.
Ke3 {[%clk 0:00:07.5]} 52... Ke6 {[%clk 0:00:01.5]} 53. Kd3 {[%clk 0:00:06.5]}
53... Ke5 {[%clk 0:00:01.5]} 54. Ke3 {[%clk 0:00:06.9]} 54... Ke6 {[%clk
0:00:01.4]} 55. Kd3 {[%clk 0:00:05.6]} 55... Ke5 {[%clk 0:00:01.8]} 56. Ke3
{[%clk 0:00:04.7]} 1/2-1/2